bitfinex/quotes_BTCUSD_20260307
["timestamp","ask_amount","ask_price","bid_price","bid_amount"]
[1772923195277,0.07437328,67229.0,67211.0,0.16863385]
[1772923195476,0.00148,67228.0,67213.0,0.2216075]
[1772923196050,0.00148,67229.0,67212.0,0.07439147]
[1772923196215,0.00148,67229.0,67216.0,0.05297365]
[1772923196421,0.00148,67229.0,67219.0,0.16863385]
[1772923196627,0.07470842,67234.0,67216.0,0.00148]
[1772923196628,0.0103253,67240.0,67218.0,0.16863385]
[1772923196832,0.0103253,67240.0,67221.0,0.05297365]
[1772923196833,0.00148,67236.0,67221.0,0.05297365]
[1772923197039,0.07498562,67237.0,67224.0,0.16863385]
[1772923197242,0.00148,67236.0,67227.0,0.05297365]
[1772923197680,0.00148,67235.0,67227.0,0.05297365]
[1772923198011,0.13725196,67243.0,67222.0,0.00148]
[1772923198012,0.00745001,67241.0,67233.0,0.05297365]
[1772923198218,0.00745001,67241.0,67234.0,0.12734078]
[1772923198419,0.00597001,67241.0,67234.0,0.12734078]
[1772923198772,0.08032969,67241.0,67234.0,0.05297365]
[1772923199176,0.08032969,67241.0,67233.0,0.07436772]
[1772923199177,0.07457181,67248.0,67236.0,0.05297365]
[1772923199716,0.07457181,67248.0,67237.0,0.05297365]
[1772923200021,0.03988924,67244.0,67230.0,0.07437156]
[1772923200334,0.07474687,67249.0,67230.0,0.07437156]
[1772923200335,0.1815793,67268.0,67230.0,0.0003096]
[1772923200534,0.16961571,67285.0,67230.0,0.0003096]
[1772923200535,0.16961571,67285.0,67279.0,0.04866681]
[1772923200536,0.24392677,67285.0,67279.0,0.04866681]
[1772923200684,0.24392677,67285.0,67244.0,0.0077]
[1772923200685,0.16961571,67283.0,67281.0,0.03663446]
[1772923200885,0.16961571,67283.0,67281.0,0.01890539]
[1772923201083,0.0186838,67284.0,67271.0,0.05732087]
[1772923201084,0.00148,67282.0,67271.0,0.05732087]
[1772923201359,0.00160011,67282.0,67271.0,0.05732087]
[1772923201560,0.00012011,67282.0,67271.0,0.05732087]
[1772923201707,0.00207131,67280.0,67264.0,0.00148]
[1772923201912,0.00148,67281.0,67264.0,0.00148]
[1772923201913,0.17450819,67279.0,67264.0,0.00148]
[1772923202110,0.00148,67281.0,67265.0,0.05732087]
[1772923202512,0.17056585,67277.0,67256.0,0.000208]
[1772923202763,0.17056585,67269.0,67248.0,0.07435135]
[1772923202923,0.00311529,67264.0,67245.0,0.13167547]
[1772923203246,0.17056585,67254.0,67244.0,0.007908]
[1772923203569,0.17056585,67254.0,67241.0,0.08010914]
[1772923203570,0.17056585,67252.0,67241.0,0.00575]
[1772923203749,0.17056585,67250.0,67245.0,1.0]
[1772923203954,0.17342638,67250.0,67241.0,0.00575]
[1772923204279,0.17342638,67250.0,67230.0,0.16297675]
[1772923204280,0.17056585,67247.0,67232.0,0.07436824]
[1772923204447,0.17362629,67243.0,67227.0,0.07437433]
[1772923204647,0.17347229,67243.0,67227.0,0.07477502]
[1772923205056,0.17025783,67243.0,67227.0,0.13209589]
[1772923205232,0.17056585,67242.0,67227.0,0.05772156]
[1772923205432,0.00657666,67241.0,67227.0,0.05772156]
[1772923205639,0.00805666,67240.0,67227.0,0.00040069]
[1772923206377,0.00148,67240.0,67228.0,0.05732087]
[1772923206541,0.07420751,67239.0,67229.0,0.07437266]
[1772923207164,0.01847847,67238.0,67229.0,0.07437266]
[1772923208679,0.07436381,67237.0,67229.0,0.07437266]
[1772923210336,0.07536381,67237.0,67229.0,0.07437266]
[1772923210543,0.07536381,67237.0,67228.0,0.05732087]
[1772923210544,0.07436381,67237.0,67228.0,0.1316943]
[1772923210710,0.07536381,67237.0,67228.0,0.1316943]
[1772923210925,0.07536381,67237.0,67228.0,0.05732087]
[1772923211845,0.07436602,67235.0,67228.0,0.05732087]
[1772923211967,0.00148,67234.0,67227.0,0.00040069]
[1772923212172,0.00132593,67234.0,67227.0,0.00040069]
[1772923213160,0.01863249,67233.0,67227.0,0.07477546]
[1772923213929,0.09300084,67233.0,67227.0,0.07477546]
[1772923214310,0.09284673,67233.0,67227.0,0.07477546]
[1772923215207,0.09384673,67233.0,67227.0,0.07477546]
[1772923215607,0.09284673,67233.0,67227.0,0.07477546]
[1772923215812,0.09384673,67233.0,67227.0,0.07477546]
[1772923216063,0.09284673,67233.0,67227.0,0.07477546]
[1772923216266,0.01847838,67233.0,67227.0,0.07477546]
[1772923216414,0.01947838,67233.0,67227.0,0.07477546]
[1772923216610,0.01947838,67233.0,67227.0,0.13229633]
[1772923216809,0.01847838,67233.0,67228.0,0.05732087]
[1772923217433,0.01995838,67233.0,67228.0,0.05732087]
[1772923218264,0.09432668,67233.0,67228.0,0.05732087]
[1772923218626,0.02095838,67233.0,67229.0,0.05732087]
[1772923218962,0.09432677,67233.0,67229.0,0.05732087]
[1772923219177,0.09532677,67233.0,67229.0,0.05732087]
[1772923219375,0.09432677,67233.0,67229.0,0.05732087]
[1772923219779,0.09517266,67233.0,67229.0,0.05732087]
[1772923220541,0.09501853,67233.0,67229.0,0.05732087]
[1772923220951,0.09401853,67233.0,67229.0,0.05732087]
[1772923221146,0.09501853,67233.0,67229.0,0.05732087]
[1772923221408,0.00148,67235.0,67229.0,0.05732087]
[1772923221900,0.001,67233.0,67229.0,0.05732087]
[1772923222196,0.00148,67235.0,67229.0,0.05732087]
[1772923222397,0.001,67233.0,67229.0,0.05732087]
[1772923222598,0.07584658,67235.0,67229.0,0.05732087]
[1772923222779,0.07584658,67235.0,67227.0,0.00060069]
[1772923222978,0.07684658,67235.0,67227.0,0.00060069]
[1772923223598,0.07684658,67235.0,67227.0,0.07497534]
[1772923223951,0.07584658,67235.0,67227.0,0.07497534]
[1772923224355,0.001,67233.0,67227.0,0.07497534]
[1772923224554,0.07436818,67234.0,67227.0,0.07497534]
[1772923225200,0.07584658,67235.0,67228.0,0.05543093]
[1772923225438,0.001,67233.0,67228.0,0.05543093]
[1772923225843,0.07584658,67235.0,67228.0,0.05543093]
[1772923226040,0.001,67234.0,67228.0,0.05563093]
[1772923226403,0.001,67234.0,67229.0,0.07437266]
[1772923226603,0.07458195,67239.0,67229.0,0.07437266]
[1772923226800,0.52585637,67330.0,67232.0,0.16297675]
[1772923226801,0.01,67250.0,67232.0,0.16297675]
[1772923226998,0.01,67250.0,67235.0,0.05543093]
[1772923227239,0.00022001,67249.0,67239.0,0.16297675]
[1772923227448,0.00022001,67249.0,67240.0,0.05543093]
[1772923227831,0.00022001,67249.0,67241.0,0.05543093]
[1772923228208,0.00170001,67253.0,67242.0,0.05543093]
[1772923228415,0.00170001,67253.0,67244.0,0.05543093]
[1772923228631,0.00170001,67253.0,67246.0,0.05543093]
[1772923230274,0.00170001,67253.0,67246.0,0.16297675]
[1772923230438,0.00170001,67253.0,67247.0,0.05543093]
[1772923230622,0.00170001,67253.0,67249.0,0.05543093]
[1772923230828,0.00270001,67253.0,67249.0,0.05543093]
[1772923231022,0.07604409,67255.0,67249.0,0.05543093]
[1772923231548,0.001,67253.0,67249.0,0.05543093]
[1772923231749,0.07604409,67255.0,67249.0,0.05543093]
[1772923232084,0.001,67253.0,67249.0,0.05543093]
[1772923233187,0.07434577,67254.0,67249.0,0.05543093]
[1772923233591,0.001,67253.0,67249.0,0.05543093]
[1772923233769,0.07434577,67254.0,67249.0,0.05543093]
[1772923233965,0.001,67253.0,67249.0,0.05543093]
[1772923234291,0.07434577,67254.0,67249.0,0.05543093]
[1772923235089,0.00022001,67253.0,67249.0,0.05543093]
[1772923235303,0.00122001,67253.0,67249.0,0.05543093]
[1772923236388,0.00022001,67253.0,67249.0,0.05543093]
[1772923237156,0.07456621,67253.0,67249.0,0.05543093]
[1772923237364,0.07556621,67253.0,67249.0,0.05543093]
[1772923237610,0.07456621,67253.0,67242.0,0.0758377]
[1772923237962,0.07556621,67253.0,67242.0,0.0673177]
[1772923238224,0.07556621,67253.0,67243.0,0.05543093]
[1772923239424,0.07456621,67253.0,67243.0,0.05543093]
[1772923239833,0.07456621,67253.0,67244.0,0.13012826]
[1772923242775,0.07456621,67253.0,67244.0,0.07435607]
[1772923243075,0.00182003,67255.0,67248.0,0.05577219]
[1772923243577,0.08455857,67260.0,67248.0,0.05577219]
[1772923243728,0.08455857,67260.0,67249.0,0.17922683]
[1772923243930,0.08455857,67260.0,67250.0,0.05577219]
[1772923246187,0.08455857,67260.0,67251.0,0.07434833]
[1772923248446,0.08455857,67260.0,67250.0,0.07434896]
[1772923248447,0.05811542,67259.0,67250.0,0.07434896]
[1772923250135,0.07434059,67258.0,67249.0,0.0002]
[1772923250449,0.00148,67257.0,67249.0,0.0002]
[1772923252440,0.07582194,67257.0,67249.0,0.0002]
[1772923256263,0.07604195,67257.0,67249.0,0.0002]
[1772923269210,0.00170001,67257.0,67249.0,0.0002]
[1772923281685,0.00170001,67257.0,67249.0,0.07455054]
[1772923288221,1e-08,67260.0,67251.0,0.17272534]
[1772923288540,0.07433209,67266.0,67256.0,0.05874294]
[1772923288774,0.00148,67265.0,67258.0,0.05874294]
[1772923288961,0.00148,67264.0,67258.0,0.05874294]
[1772923289173,0.00148,67264.0,67261.0,0.17272534]
[1772923289310,0.00148,67266.0,67263.0,0.05874294]
[1772923289633,0.01,67270.0,67251.0,0.00148]
[1772923289634,0.00148,67267.0,67265.0,0.05874294]
[1772923289955,0.00148,67269.0,67265.0,0.17272534]
[1772923290169,0.08447293,67274.0,67266.0,0.05874294]
[1772923290360,0.00148,67270.0,67268.0,0.05874294]
[1772923290513,0.00148,67271.0,67268.0,0.05874294]
[1772923290707,0.08244293,67274.0,67269.0,0.05874294]
[1772923290906,0.00812,67274.0,67269.0,0.05874294]
[1772923291107,0.00148,67273.0,67269.0,0.05874294]
[1772923291731,0.00148,67272.0,67269.0,0.05874294]
[1772923291934,0.08244306,67274.0,67269.0,0.05874294]
[1772923292132,0.00148,67273.0,67269.0,0.05874294]
[1772923292560,0.00148,67272.0,67269.0,0.05874294]
[1772923292986,0.08244306,67274.0,67269.0,0.05874294]
[1772923293162,0.00148,67273.0,67268.0,0.07432929]
[1772923293367,0.00148,67273.0,67269.0,0.05874294]
[1772923293570,0.00148,67272.0,67269.0,0.05874294]
[1772923293980,0.00812,67274.0,67269.0,0.05874294]
[1772923294183,0.00148,67273.0,67269.0,0.05874294]
[1772923294585,0.00148,67272.0,67269.0,0.13307049]
[1772923294962,0.00812,67274.0,67269.0,0.13307049]
[1772923295156,0.00148,67273.0,67269.0,0.07432755]
[1772923295351,0.00812,67274.0,67269.0,0.07432755]
[1772923295352,0.00812,67274.0,67270.0,0.05874294]
[1772923295556,0.00148,67273.0,67270.0,0.05874294]
[1772923296353,0.00812,67274.0,67270.0,0.05874294]
[1772923296555,0.24447317,67283.0,67270.0,0.05874294]
[1772923296556,0.00148,67277.0,67271.0,0.07432623]
[1772923296818,0.00148,67279.0,67272.0,0.05874294]
[1772923298127,0.00148,67279.0,67274.0,0.05874294]
[1772923298281,0.00148,67279.0,67275.0,0.05684365]
[1772923298666,0.00248,67279.0,67276.0,0.0743207]
[1772923299675,0.00248,67279.0,67276.0,0.13116435]
[1772923299874,0.00022001,67281.0,67276.0,0.13116435]
[1772923300090,0.001,67279.0,67276.0,0.13116435]
[1772923300564,0.00022001,67281.0,67276.0,0.13116435]
[1772923300725,0.001,67279.0,67276.0,0.13116435]
[1772923301053,0.00022001,67281.0,67276.0,0.13116435]
[1772923301834,0.00022001,67281.0,67271.0,0.07432623]
[1772923302015,0.00022001,67281.0,67272.0,0.05684365]
[1772923303015,0.01,67290.0,67273.0,0.16297417]
[1772923303260,0.05280684,67286.0,67271.0,0.07432623]
[1772923303421,0.05280684,67285.0,67271.0,0.07432623]
[1772923303835,0.07431297,67283.0,67270.0,0.07432623]
[1772923304023,0.08452856,67288.0,67270.0,0.07432623]
[1772923304024,1e-08,67290.0,67270.0,0.07444634]
[1772923304218,0.0112,67300.0,67270.0,0.07444634]
[1772923304219,0.09152983,67295.0,67270.0,0.07444634]
[1772923304619,0.09152983,67295.0,67271.0,0.21981782]
[1772923304842,0.09152983,67295.0,67272.0,0.05684365]
[1772923305040,0.09174984,67295.0,67275.0,0.16297417]
[1772923305335,0.09174984,67295.0,67279.0,0.16297417]
[1772923305540,0.09174984,67295.0,67280.0,0.05684365]
[1772923306431,0.09174984,67295.0,67282.0,0.05684365]
[1772923307603,0.16527052,67292.0,67273.0,0.07432402]
[1772923307798,0.05280684,67289.0,67273.0,0.07432402]
[1772923307969,0.09174984,67295.0,67273.0,0.07432402]
[1772923307970,0.05280684,67287.0,67273.0,0.07432402]
[1772923308209,0.05280684,67287.0,67274.0,0.05684365]
[1772923308494,0.24105884,67288.0,67275.0,0.07432181]
[1772923309700,0.24105884,67288.0,67275.0,0.13116546]
[1772923310286,0.29386568,67288.0,67275.0,0.07432181]
[1772923310483,0.29386568,67288.0,67273.0,0.13116767]
[1772923310681,0.29386568,67288.0,67245.0,0.35690158]
[1772923310682,0.07578832,67288.0,67263.0,0.07433491]
[1772923310886,0.21807736,67287.0,67263.0,0.07433491]
[1772923311133,0.16527052,67287.0,67263.0,0.07433491]
[1772923311281,0.05280684,67284.0,67263.0,0.07433491]
[1772923311484,0.16527052,67281.0,67263.0,0.07433491]
[1772923311681,0.16527052,67279.0,67262.0,0.0002]
[1772923312024,0.05280684,67274.0,67262.0,0.0002]
[1772923312226,0.00148,67273.0,67262.0,0.0002]
[1772923312432,0.00148,67273.0,67262.0,0.07453615]
[1772923312725,0.07432512,67272.0,67262.0,0.0002]
[1772923312882,0.07432512,67272.0,67263.0,0.001]
[1772923313961,0.07432512,67272.0,67262.0,0.0002]
[1772923314441,0.07590838,67271.0,67262.0,0.0002]
[1772923315318,0.07432733,67270.0,67262.0,0.0002]
[1772923317172,0.07432512,67272.0,67262.0,0.0002]
[1772923317476,0.07432697,67271.0,67262.0,0.0002]
[1772923318645,0.07590838,67270.0,67262.0,0.0002]
[1772923319253,0.07432844,67269.0,67262.0,0.0002]
[1772923321570,0.07432697,67271.0,67262.0,0.0002]
[1772923321771,0.07417697,67271.0,67262.0,0.0002]
[1772923322655,0.16527057,67270.0,67262.0,0.0002]
[1772923324287,0.00148,67269.0,67262.0,0.0002]
[1772923327890,0.07590838,67268.0,67262.0,0.0002]
[1772923329832,0.07590838,67268.0,67263.0,0.05471255]
[1772923330017,0.07590838,67268.0,67264.0,0.05471255]
[1772923330435,0.00148,67268.0,67265.0,0.07433286]
[1772923330651,0.00148,67268.0,67266.0,0.05471255]
[1772923330989,0.00148,67268.0,67265.0,0.07433286]
[1772923331188,0.00148,67268.0,67265.0,0.12904541]
[1772923331389,0.16527052,67267.0,67265.0,0.12904541]
[1772923332544,0.16527052,67267.0,67265.0,0.12916548]
[1772923332946,0.16527052,67267.0,67266.0,0.0002]
[1772923334851,0.16527052,67267.0,67265.0,0.00012007]
[1772923336291,0.16527052,67267.0,67266.0,0.05471255]
[1772923336493,0.16527052,67267.0,67265.0,0.00012007]
[1772923338320,0.07432418,67273.0,67266.0,0.05471255]
[1772923338321,0.00148,67271.0,67266.0,0.05471255]
[1772923340768,0.07431518,67281.0,67267.0,0.07433065]
[1772923340903,0.05686575,67279.0,67267.0,0.07433065]
[1772923341104,0.00022001,67271.0,67267.0,0.07433065]
[1772923341339,0.00170001,67271.0,67267.0,0.07433065]
[1772923341748,0.00022001,67278.0,67267.0,0.07433065]
[1772923341943,0.00148,67277.0,67267.0,0.07433065]
[1772923342353,0.00148,67276.0,67267.0,0.07433065]
[1772923343042,0.07432181,67275.0,67267.0,0.07433065]
[1772923349961,0.07454182,67275.0,67267.0,0.07433065]
[1772923350838,0.00022001,67275.0,67268.0,0.05471255]
[1772923351586,0.00022001,67282.0,67268.0,0.16941488]
[1772923351753,0.00148001,67282.0,67271.0,0.05471255]
[1772923351917,0.00022001,67287.0,67273.0,0.05471255]
[1772923352119,0.00148,67284.0,67273.0,0.05471255]
[1772923352342,0.00022001,67287.0,67275.0,0.05471255]
[1772923352343,0.00148,67283.0,67275.0,0.05471255]
[1772923352753,0.00022001,67287.0,67275.0,0.05471255]
[1772923352961,0.00148,67282.0,67275.0,0.05471255]
[1772923353111,0.00022001,67287.0,67275.0,0.05471255]
[1772923353333,0.00148,67282.0,67275.0,0.05471255]
[1772923354005,0.00022001,67287.0,67275.0,0.05471255]
[1772923354142,0.00148,67284.0,67275.0,0.05471255]
[1772923354544,0.00148,67283.0,67276.0,0.12903325]
[1772923354744,0.00148,67283.0,67277.0,0.05471255]
[1772923355279,0.00148,67282.0,67277.0,0.05471255]
[1772923355645,0.00022001,67287.0,67277.0,0.05471255]
[1772923355839,0.00148,67284.0,67277.0,0.05471255]
[1772923356246,0.00148,67283.0,67277.0,0.05471255]
[1772923356682,0.07452875,67287.0,67278.0,0.07431849]
[1772923356891,0.00148,67282.0,67279.0,0.05471255]
[1772923357187,0.00022001,67287.0,67279.0,0.05471255]
[1772923357490,0.00148,67282.0,67278.0,0.07431849]
[1772923357688,0.00148,67283.0,67279.0,0.05471255]
[1772923358912,0.00022001,67282.0,67280.0,0.07431629]
[1772923359368,0.00170001,67285.0,67280.0,0.07431629]
[1772923359576,0.00170001,67287.0,67280.0,0.07431629]
[1772923359757,0.00170001,67287.0,67281.0,0.05216295]
[1772923361224,0.00170001,67287.0,67282.0,0.07431408]
[1772923361590,0.00170001,67287.0,67282.0,0.12647703]
[1772923362210,0.00170001,67287.0,67283.0,0.05216295]
[1772923362831,0.00148,67287.0,67283.0,0.05216295]
[1772923363219,0.00022001,67289.0,67285.0,0.05216295]
[1772923365862,0.00022001,67289.0,67286.0,0.07430966]
[1772923367041,0.00031517,67289.0,67286.0,0.07430966]
[1772923367859,0.00148,67290.0,67287.0,0.05216295]
[1772923368322,0.00148,67291.0,67287.0,0.05216295]
[1772923368737,0.01575,67295.0,67287.0,0.05216295]
[1772923368937,0.00148,67294.0,67287.0,0.05216295]
[1772923369473,0.00148,67293.0,67287.0,0.05216295]
[1772923369682,0.00148,67293.0,67286.0,0.07430966]
[1772923369888,0.01575,67295.0,67285.0,0.07430966]
[1772923369889,0.00148,67292.0,67285.0,0.07430966]
[1772923370187,0.00148,67292.0,67285.0,0.12647261]
[1772923370399,0.00148,67291.0,67286.0,0.05216295]
[1772923370750,0.01575,67295.0,67286.0,0.05216295]
[1772923370751,0.00148,67292.0,67286.0,0.05216295]
[1772923373704,0.00148,67292.0,67288.0,0.05216295]
[1772923373872,0.00148,67294.0,67288.0,0.05216295]
[1772923374958,0.00022001,67296.0,67288.0,0.05216295]
[1772923375196,0.0002092,67297.0,67287.0,0.07430855]
[1772923375430,0.00148,67296.0,67287.0,0.07430855]
[1772923375614,0.00148,67296.0,67289.0,0.07430635]
[1772923376432,0.01961778,67296.0,67289.0,0.07430635]
[1772923377485,0.01961778,67296.0,67289.0,0.07413678]
[1772923377886,0.01961778,67296.0,67288.0,0.07430635]
[1772923378739,0.01961778,67296.0,67288.0,0.1264693]
[1772923379339,0.01961778,67296.0,67288.0,0.07430635]
[1772923379642,0.01961778,67296.0,67289.0,0.05216295]
[1772923380335,0.01961778,67296.0,67290.0,0.07430524]
[1772923381215,0.00148,67296.0,67290.0,0.07430524]
[1772923381420,0.00170001,67296.0,67290.0,0.07430524]
[1772923383146,0.01961777,67295.0,67290.0,0.07430524]
[1772923383642,0.01961777,67295.0,67290.0,0.1275951]
[1772923383801,0.01961777,67295.0,67291.0,0.05328986]
[1772923385040,0.00170001,67296.0,67291.0,0.05328986]
[1772923385242,0.00170001,67296.0,67293.0,0.05328986]
[1772923385650,0.001,67295.0,67293.0,0.05328986]
[1772923385852,0.001,67295.0,67292.0,0.07430303]
[1772923386032,0.00170001,67296.0,67292.0,0.07430303]
[1772923386235,0.00270001,67296.0,67292.0,0.12759289]
[1772923386551,0.00170001,67296.0,67293.0,0.05328986]
[1772923387258,0.00170001,67296.0,67294.0,0.07430082]
[1772923387471,0.00270001,67296.0,67294.0,0.07430082]
[1772923387848,0.00270001,67296.0,67295.0,0.05328986]
[1772923388172,0.00148,67297.0,67295.0,0.04864666]
[1772923388337,0.00148,67299.0,67295.0,0.04864666]
[1772923388941,0.07429103,67303.0,67295.0,0.04864666]
[1772923389143,0.001,67296.0,67295.0,0.04864666]
[1772923389365,0.001,67296.0,67295.0,0.12294638]
[1772923389570,0.00148,67301.0,67295.0,0.12294638]
[1772923390251,0.00148,67301.0,67295.0,0.07429972]
[1772923390690,0.07442551,67304.0,67295.0,0.12581721]
[1772923390859,0.00170001,67303.0,67295.0,0.12581721]
[1772923391287,0.00148,67302.0,67295.0,0.12581721]
[1772923391710,0.07451099,67303.0,67295.0,0.12581721]
[1772923391912,0.00148,67302.0,67295.0,0.12581721]
[1772923392120,0.00148,67302.0,67296.0,0.05151749]
[1772923393408,0.00148,67302.0,67293.0,0.07430193]
[1772923393580,0.00148,67302.0,67292.0,0.07430211]
[1772923393784,0.04437931,67298.0,67284.0,0.00148]
[1772923394025,0.20859093,67298.0,67284.0,0.00148]
[1772923394326,0.20859093,67298.0,67283.0,0.05171749]
[1772923396111,0.12275445,67297.0,67284.0,0.07431187]
[1772923396310,0.00148,67296.0,67284.0,0.07431187]
[1772923397153,0.00148,67296.0,67285.0,0.05151749]
[1772923398734,0.07577918,67296.0,67286.0,0.07430966]
[1772923401247,0.00148,67295.0,67288.0,0.05151749]
[1772923401682,0.00148,67295.0,67286.0,0.07430966]
[1772923405460,0.00148,67295.0,67284.0,0.05151749]
[1772923407939,0.00148,67295.0,67285.0,0.07431076]
[1772923408235,0.00148,67295.0,67285.0,0.12582825]
[1772923408391,0.00170001,67295.0,67285.0,0.12582825]
[1772923410297,0.00170001,67295.0,67285.0,0.12565873]
[1772923411072,0.28866885,67295.0,67284.0,0.0002]
[1772923411260,0.16421162,67293.0,67284.0,0.0002]
[1772923411935,0.07430303,67292.0,67284.0,0.0002]
[1772923419373,0.07430303,67292.0,67283.0,0.0002]
[1772923419762,0.06430303,67292.0,67283.0,0.0002]
[1772923421776,0.06430303,67292.0,67278.0,0.07445328]
[1772923421982,0.06430303,67292.0,67278.0,0.07454887]
[1772923422277,0.15989298,67290.0,67278.0,0.07454887]
[1772923422477,0.00148,67289.0,67278.0,0.07454887]
[1772923423578,0.0745208,67296.0,67278.0,0.07454887]
[1772923423778,0.00148,67291.0,67280.0,0.04932901]
[1772923426154,0.00148,67291.0,67282.0,0.04932901]
[1772923427768,0.16137298,67291.0,67281.0,0.00148]
[1772923428169,0.16137298,67291.0,67281.0,0.07579421]
[1772923428628,0.23567749,67291.0,67281.0,0.00148]
[1772923428802,0.15989298,67289.0,67280.0,0.0002]
[1772923430805,0.07415329,67288.0,67280.0,0.0002]
[1772923431426,0.07430682,67289.0,67280.0,0.04952901]
[1772923431789,0.07430682,67289.0,67280.0,0.04932901]
[1772923432187,0.07430682,67289.0,67278.0,0.00023066]
[1772923433399,0.07430682,67289.0,67277.0,0.07579944]
[1772923433400,0.07430682,67289.0,67277.0,4.033e-05]
[1772923433600,0.07430682,67289.0,67278.0,0.04932901]
[1772923433786,0.07578524,67291.0,67278.0,0.15705341]
[1772923433991,0.00022001,67292.0,67280.0,0.15705341]
[1772923434207,0.00022001,67296.0,67283.0,0.04932901]
[1772923434415,0.00022001,67296.0,67277.0,0.07443956]
[1772923434416,0.00170001,67295.0,67282.0,0.00148]
[1772923434592,0.00022001,67295.0,67282.0,0.00148]
[1772923434788,0.00022001,67295.0,67283.0,0.07431297]
[1772923434987,0.15989298,67294.0,67282.0,0.00148]
[1772923435206,0.21158849,67293.0,67282.0,0.00148]
[1772923436303,0.00022001,67290.0,67282.0,0.00148]
[1772923437212,0.07452569,67290.0,67280.0,0.07431623]
[1772923437418,0.00022001,67290.0,67280.0,0.07431623]
[1772923438862,0.00022001,67290.0,67279.0,0.07431739]
[1772923439878,0.07452565,67290.0,67279.0,0.07431739]
[1772923440281,0.00022001,67290.0,67279.0,0.07431739]
[1772923441169,0.00022001,67290.0,67279.0,0.12313028]
[1772923442484,0.07452551,67290.0,67278.0,0.07599796]
[1772923442683,0.07452551,67290.0,67278.0,0.00168]
[1772923442684,0.12393021,67290.0,67278.0,0.00168]
[1772923442887,0.0494047,67289.0,67278.0,0.00168]
[1772923443280,0.0494047,67289.0,67278.0,0.07599827]
[1772923444540,0.07430745,67288.0,67278.0,0.00168]
[1772923444962,0.07430745,67288.0,67278.0,0.0002]
[1772923444963,0.0508847,67287.0,67278.0,0.0002]
[1772923445224,0.0494047,67283.0,67274.0,0.00015]
[1772923445395,0.0494047,67283.0,67269.0,0.0002]
[1772923445396,0.1642855,67280.0,67269.0,0.0002]
[1772923445571,0.00012002,67283.0,67264.0,0.0002]
[1772923445572,0.1642855,67276.0,67264.0,0.0002]
[1772923445770,0.00148,67279.0,67262.0,0.0002]
[1772923445771,0.0494047,67273.0,67262.0,0.0002]
[1772923446129,0.1642855,67269.0,67261.0,0.0002]
[1772923446410,0.00148,67268.0,67261.0,0.0002]
[1772923446611,0.07433065,67267.0,67261.0,0.0002]
[1772923446822,0.07433065,67267.0,67255.0,0.07454357]
[1772923446823,0.1642855,67265.0,67255.0,0.0002]
[1772923446966,0.1642855,67261.0,67250.0,0.07554938]
[1772923447167,0.2151702,67260.0,67250.0,0.07554938]
[1772923447405,0.0508847,67259.0,67250.0,0.07554938]
[1772923447965,0.0508847,67259.0,67250.0,0.07654938]
[1772923448612,0.0508847,67259.0,67250.0,0.07554938]
[1772923448917,0.12522444,67259.0,67250.0,0.0012]
[1772923449318,0.0508847,67259.0,67250.0,0.07554892]
[1772923449814,0.1252243,67259.0,67250.0,0.07554892]
[1772923450788,0.04748997,67258.0,67250.0,0.0012]
[1772923451438,0.04748997,67258.0,67250.0,0.0014]
[1772923451641,0.04748997,67258.0,67250.0,0.07574935]
[1772923452050,0.04748997,67258.0,67250.0,0.0014]
[1772923452736,0.07434067,67258.0,67250.0,0.0014]
[1772923453105,0.07582059,67259.0,67250.0,0.0757494]
[1772923454283,0.07582059,67259.0,67250.0,0.0014]
[1772923454886,0.04748997,67258.0,67249.0,0.07027005]
[1772923456155,0.04748997,67258.0,67248.0,0.0002]
[1772923456359,0.04748997,67258.0,67248.0,0.00032002]
[1772923456680,0.12183078,67258.0,67248.0,0.00032002]
[1772923457050,0.12183078,67258.0,67257.0,0.00015]
[1772923458502,0.07434081,67258.0,67257.0,0.00015]
[1772923458909,0.07434081,67258.0,67248.0,0.07467162]
[1772923459113,0.04748997,67255.0,67247.0,0.07435209]
[1772923459317,0.000107,67255.0,67247.0,0.12340061]
[1772923459525,0.000107,67255.0,67249.0,0.0002]
[1772923468032,0.000107,67255.0,67249.0,0.04924852]
[1772923468532,0.1642855,67254.0,67246.0,0.07447586]
[1772923468722,0.000107,67255.0,67246.0,0.07447586]
[1772923469901,0.04759697,67255.0,67246.0,0.07447586]
[1772923470635,0.04759697,67255.0,67244.0,0.07435607]
[1772923470636,0.1642855,67253.0,67244.0,0.07435607]
[1772923470841,0.04748997,67252.0,67244.0,0.07435607]
[1772923472081,0.12183757,67252.0,67243.0,0.0002]
[1772923472259,0.12183757,67252.0,67243.0,0.0006998]
[1772923472433,0.0743476,67252.0,67243.0,0.0006998]
[1772923472632,0.12183757,67252.0,67243.0,0.0006998]
[1772923472839,0.12183757,67252.0,67246.0,0.0002]
[1772923474589,0.12183757,67252.0,67245.0,0.0004998]
[1772923476690,0.14977226,67250.0,67242.0,0.07435827]
[1772923476888,0.04748997,67249.0,67242.0,0.07435827]
[1772923477341,0.0743476,67252.0,67242.0,0.07435827]
[1772923478043,0.0743476,67252.0,67243.0,0.15240267]
[1772923478246,0.0743476,67252.0,67244.0,0.04904852]
[1772923478544,0.07582693,67253.0,67244.0,0.04904852]
[1772923478746,0.000107,67255.0,67245.0,0.0467396]
[1772923478948,0.000107,67255.0,67247.0,0.0467396]
[1772923479145,0.00148,67257.0,67248.0,0.0467396]
[1772923479294,0.00148,67257.0,67248.0,0.0468466]
[1772923479501,0.07433986,67259.0,67248.0,0.0468466]
[1772923479702,0.00148,67257.0,67248.0,0.0468466]
[1772923479902,0.00148,67257.0,67249.0,0.15240267]
[1772923480104,0.07604061,67258.0,67250.0,0.0467396]
[1772923480340,0.07456061,67258.0,67250.0,0.0467396]
[1772923480539,0.07604061,67258.0,67250.0,0.0467396]
[1772923480924,0.07456061,67258.0,67251.0,0.07434833]
[1772923481113,0.07456061,67258.0,67251.0,0.12108793]
[1772923482164,0.07604061,67258.0,67251.0,0.12108793]
[1772923482559,0.07456061,67258.0,67251.0,0.12108793]
[1772923485014,0.12488965,67258.0,67248.0,0.07445833]
[1772923485417,0.07456061,67258.0,67248.0,0.07445833]
[1772923485766,0.07456061,67258.0,67248.0,0.12119793]
[1772923487019,0.07456061,67258.0,67248.0,0.07445833]
[1772923487988,0.07604061,67258.0,67249.0,0.0467396]
[1772923488322,0.00148,67261.0,67249.0,0.0467396]
[1772923488482,0.00148,67261.0,67253.0,0.0467396]
[1772923488672,0.00148,67262.0,67253.0,0.0467396]
[1772923489106,0.07581626,67262.0,67254.0,0.07434502]
[1772923489306,0.00148,67262.0,67254.0,0.07434502]
[1772923491343,0.14977226,67259.0,67248.0,0.07445807]
[1772923491549,0.07433728,67261.0,67245.0,0.07435386]
[1772923491550,0.14977226,67255.0,67245.0,0.07435386]
[1772923491743,0.05032904,67254.0,67245.0,0.06435386]